Cogmind - Beta 15 @@@ ROGUE MODE // 2025.06.18 @ 22:50:51 Player: quak Result: Destroyed by P-70 Sage with High-powered Shock Rifle Performance ------------- Evolutions (5) 2500 Regions Visited (12) 2400 Robots Destroyed (0) 0 Value Destroyed (0) 0 Prototype IDs (0) 0 Alien Tech Used (0) 0 Bonus (2881) 2881 TOTAL SCORE: 7781 Bonus ------- Pacifist 2081 Entered DSFs 500 Aligned with FarCom 300 Cogmind --------- Core Integrity 0/1000 Matter 300/300 Energy 99/100 System Corruption 7% Temperature Cool (0) Movement Core (50) Location -5/Upper Caves Parts ------- > --- POWER (11) ------- (None) > --- PROPULSION (2) --- (None) > --- UTILITY (2) ------ (None) > --- WEAPON (2) ------- (None) > --- INVENTORY (5) ---- (None) Peak State ------------ None Favorites ----------- Power None Propulsion None Utility None Weapon None Build | -11 -10 -10 -9 -9 -9 -8 -8 -7 -7 -6 -5 -5 ------- Run | Yrd Mat Min Mat Min Exi Min Mat Fac DSF Fac Fac Upp Slots Evolved 10 | . . . 2 . . . 2 2 . 2 2 . Power 10 | . . . 2 . . . 2 2 . 2 2 . Propulsion . | . . . . . . . . . . . . . Utility . | . . . . . . . . . . . . . Weapon . | . . . . . . . . . . . . . Parts Attached . | . . . . . . . . . . . . . Power . | . . . . . . . . . . . . . Engine . | . . . . . . . . . . . . . Core . | . . . . . . . . . . . . . Reactor . | . . . . . . . . . . . . . Propulsion . | . . . . . . . . . . . . . Treads . | . . . . . . . . . . . . . Leg . | . . . . . . . . . . . . . Wheel . | . . . . . . . . . . . . . Hover . | . . . . . . . . . . . . . Flight . | . . . . . . . . . . . . . Utility . | . . . . . . . . . . . . . Device . | . . . . . . . . . . . . . Storage . | . . . . . . . . . . . . . Processor . | . . . . . . . . . . . . . Hackware . | . . . . . . . . . . . . . Protection . | . . . . . . . . . . . . . Artifact . | . . . . . . . . . . . . . Weapon . | . . . . . . . . . . . . . Energy Gun . | . . . . . . . . . . . . . Energy Cannon . | . . . . . . . . . . . . . Ballistic Gun . | . . . . . . . . . . . . . Ballistic Cannon . | . . . . . . . . . . . . . Launcher . | . . . . . . . . . . . . . Special Weapon . | . . . . . . . . . . . . . Impact Weapon . | . . . . . . . . . . . . . Slashing Weapon . | . . . . . . . . . . . . . Piercing Weapon . | . . . . . . . . . . . . . Special Melee Weapon . | . . . . . . . . . . . . . Unidentified Prototypes . | . . . . . . . . . . . . . Parts Lost . | . . . . . . . . . . . . . Power . | . . . . . . . . . . . . . Propulsion . | . . . . . . . . . . . . . Utility . | . . . . . . . . . . . . . Weapon . | . . . . . . . . . . . . . Highest Loss Streak . | . . . . . . . . . . . . . To Critical Strikes . | . . . . . . . . . . . . . Average Backups . | . . . . . . . . . . . . . Power . | . . . . . . . . . . . . . Propulsion . | . . . . . . . . . . . . . Utility . | . . . . . . . . . . . . . Weapon . | . . . . . . . . . . . . . Tool/Special . | . . . . . . . . . . . . . Unused Backups . | . . . . . . . . . . . . . Power . | . . . . . . . . . . . . . Propulsion . | . . . . . . . . . . . . . Utility . | . . . . . . . . . . . . . Weapon . | . . . . . . . . . . . . . Tool/Special . | . . . . . . . . . . . . . Average Slot Usage (%) . | . . . . . . . . . . . . . Peak Build Rating . | . . . . . . . . . . . . . Average Rating . | . . . . . . . . . . . . . On Entrance . | . . . . . . . . . . . . . Naked Turns 1197 | . 87 26 62 52 77 86 138 21 56 152 291 149 Heaviest Build . | . . . . . . . . . . . . . Greatest Support 3 | 3 3 3 3 3 3 3 3 3 3 3 3 3 Greatest Overweight (x) . | . . . . . . . . . . . . . Average Overweight (x) . | . . . . . . . . . . . . . Largest Inventory Capacity 5 | 5 5 5 5 5 5 5 5 5 5 5 5 5 Average Capacity 5 | 5 5 5 5 5 5 5 5 5 5 5 5 5 Most Carried . | . . . . . . . . . . . . . Average Carried . | . . . . . . . . . . . . . Final Capacity 5 | 5 5 5 5 5 5 5 5 5 5 5 5 5 Final Carried . | . . . . . . . . . . . . . Class Distribution -------------------- 100% | Mutant Dominant Class ---------------- Mutant | -10/Materials Mutant | -10/Mines Mutant | -9/Materials Mutant | -9/Mines Mutant | -9/Exiles Mutant | -8/Mines Mutant | -8/Materials Mutant | -7/Factory Mutant | -7/DSF Mutant | -6/Factory Mutant | -5/Factory Mutant | -5/Upper Caves Resources | -11 -10 -10 -9 -9 -9 -8 -8 -7 -7 -6 -5 -5 ----------- Run | Yrd Mat Min Mat Min Exi Min Mat Fac DSF Fac Fac Upp Matter Collected 134 | . . 58 . . . . . . 76 . . . Remotely . | . . . . . . . . . . . . . Salvage Created 50 | . . . . . . . . . . . . 50 Parts . | . . . . . . . . . . . . . Haulers Intercepted . | . . . . . . . . . . . . . Recyclers Shooed . | . . . . . . . . . . . . . Parts Field Recycled . | . . . . . . . . . . . . . Retrieved Matter . | . . . . . . . . . . . . . Parts Self-Destructed 2 | . . . . . . . . . . . . 2 Prevented . | . . . . . . . . . . . . . Kills | -11 -10 -10 -9 -9 -9 -8 -8 -7 -7 -6 -5 -5 ------- Run | Yrd Mat Min Mat Min Exi Min Mat Fac DSF Fac Fac Upp Combat Hostiles Destroyed . | . . . . . . . . . . . . . Classes Destroyed 1 | . . . . . . . . . . . . 1 Samaritan 1 | . . . . . . . . . . . . 1 Best Kill Streak . | . . . . . . . . . . . . . Combat Bots Only . | . . . . . . . . . . . . . Max Kills in Single Turn 1 | . . . . . . . . . . . . 1 Gunslinging . | . . . . . . . . . . . . . Exploded . | . . . . . . . . . . . . . Melee . | . . . . . . . . . . . . . Uniques/NPCs Destroyed . | . . . . . . . . . . . . . Combat | -11 -10 -10 -9 -9 -9 -8 -8 -7 -7 -6 -5 -5 -------- Run | Yrd Mat Min Mat Min Exi Min Mat Fac DSF Fac Fac Upp Hostile Shots Fired 168 | . 22 . 11 5 . 17 22 . . . 27 64 Missed 67 | . 10 . 3 3 . 2 8 . . . 9 32 Hits 101 | . 12 . 8 2 . 15 14 . . . 18 32 Melee 1 | . . . . . . 1 . . . . . . Projectile 100 | . 12 . 8 2 . 14 14 . . . 18 32 Critical Strikes 8 | . 1 . 1 . . 1 1 . . . . 4 Damage Taken 1750 | . 153 6 93 21 . 246 226 . . 4 426 575 Core 1750 | . 153 6 93 21 . 246 226 . . 4 426 575 Absorbed by Shields 5 | . . . . . . . . . . . 5 . Core Remaining (%) 67 | 100 . 36 . . . 10 58 . 100 99 . . Volleys Fired . | . . . . . . . . . . . . . Largest . | . . . . . . . . . . . . . Hottest . | . . . . . . . . . . . . . Shots Fired . | . . . . . . . . . . . . . Gun . | . . . . . . . . . . . . . Cannon . | . . . . . . . . . . . . . Launcher . | . . . . . . . . . . . . . Special . | . . . . . . . . . . . . . Kinetic . | . . . . . . . . . . . . . Thermal . | . . . . . . . . . . . . . Explosive . | . . . . . . . . . . . . . Electromagnetic . | . . . . . . . . . . . . . Robot Hit Streak . | . . . . . . . . . . . . . Robot Miss Streak . | . . . . . . . . . . . . . Penetration Max . | . . . . . . . . . . . . . Secondary Targets . | . . . . . . . . . . . . . Shots Hit Robots . | . . . . . . . . . . . . . Core Hits 6 | . 1 . . . . 1 1 . . . 3 . Critical Kills . | . . . . . . . . . . . . . Critical Parts Destroyed . | . . . . . . . . . . . . . Critical Strikes . | . . . . . . . . . . . . . Melee Attacks . | . . . . . . . . . . . . . Impact . | . . . . . . . . . . . . . Slashing . | . . . . . . . . . . . . . Piercing . | . . . . . . . . . . . . . Sneak Attacks . | . . . . . . . . . . . . . Combat Hostiles . | . . . . . . . . . . . . . Follow-up Attacks . | . . . . . . . . . . . . . Damage Inflicted 199 | . 4 13 . . . 19 40 . . 8 97 18 Guns . | . . . . . . . . . . . . . Cannons . | . . . . . . . . . . . . . Explosions . | . . . . . . . . . . . . . Melee . | . . . . . . . . . . . . . Ramming 199 | . 4 13 . . . 19 40 . . 8 97 18 Kinetic . | . . . . . . . . . . . . . Thermal . | . . . . . . . . . . . . . Explosive . | . . . . . . . . . . . . . Electromagnetic . | . . . . . . . . . . . . . Impact . | . . . . . . . . . . . . . Slashing . | . . . . . . . . . . . . . Piercing . | . . . . . . . . . . . . . Highest Corruption 7 | . . . . . . 1 4 . . . 2 7 Average Corruption 2 | . . . . . . 1 3 . . . 2 2 Corruption Purged . | . . . . . . . . . . . . . Corruption Blocked . | . . . . . . . . . . . . . Effects 3 | . . . . . . . . . . . . 3 Heat Flow Errors 1 | . . . . . . . . . . . . 1 Energy Discharges 2 | . . . . . . . . . . . . 2 Overload Shots . | . . . . . . . . . . . . . Overflow Damage 7 | . . . . . . . . . . . . 7 Projectiles . | . . . . . . . . . . . . . Explosions . | . . . . . . . . . . . . . Melee 7 | . . . . . . . . . . . . 7 Knockbacks 2 | . . . . . . 1 . . . . 1 . Impact 2 | . . . . . . 1 . . . . 1 . Kinetic . | . . . . . . . . . . . . . Secondary . | . . . . . . . . . . . . . Self-Inflicted Damage 93 | . 2 6 . . . 9 17 . . 4 46 9 Shots . | . . . . . . . . . . . . . Rammed 42 | . 2 1 . . . 5 12 . . 3 15 4 Targets Rammed 42 | . 2 1 . . . 5 12 . . 3 15 4 Kicked . | . . . . . . . . . . . . . Crushed . | . . . . . . . . . . . . . Highest Temperature 147 | . 2 . . . . . . . . . . 147 Average Temperature 70 | . 2 . . . . . . . . . . 87 Received Heat Transfer 522 | . 99 . 36 12 . 144 90 . . . 141 . Siege Activations . | . . . . . . . . . . . . . Martial Activations . | . . . . . . . . . . . . . Shielding Activations . | . . . . . . . . . . . . . Robots Disrupted . | . . . . . . . . . . . . . Combat Hostiles . | . . . . . . . . . . . . . Robots Corrupted 1 | . . . . . . . . . . . . 1 Combat Hostiles . | . . . . . . . . . . . . . Parts Fried 1 | . . . . . . . . . . . . 1 Impact Corruptions 3 | . . . . . . . . . . . . 3 Robots Melted . | . . . . . . . . . . . . . Combat Hostiles . | . . . . . . . . . . . . . Parts Melted . | . . . . . . . . . . . . . Heat Transferred . | . . . . . . . . . . . . . Parts Sabotaged . | . . . . . . . . . . . . . Parts Stolen . | . . . . . . . . . . . . . Parts Stripped . | . . . . . . . . . . . . . Power Chain Reactions . | . . . . . . . . . . . . . Alert | -11 -10 -10 -9 -9 -9 -8 -8 -7 -7 -6 -5 -5 ------- Run | Yrd Mat Min Mat Min Exi Min Mat Fac DSF Fac Fac Upp Maximum Alert Level . | . . . . . . . . . . . . . Low Security (%) 100 | 100 100 100 100 100 . 100 100 100 100 100 100 . Level 1 . | . . . . . . . . . . . . . Level 2 . | . . . . . . . . . . . . . Level 3 . | . . . . . . . . . . . . . Level 4 . | . . . . . . . . . . . . . Level 5 . | . . . . . . . . . . . . . High Security . | . . . . . . . . . . . . . Max Security . | . . . . . . . . . . . . . Sterilizations 1 | . . . . . . . . . 1 . . . Peak Influence 85 | . 85 33 47 35 . . 50 22 26 18 84 . Initial 33 | . . 33 8 10 . . . 22 11 13 . . Average 18 | . 18 30 31 20 . . 9 21 13 2 33 . Influence Increases 578 | . 121 . 49 45 . . 80 5 15 5 168 90 Successful Hack 68 | . 16 . 19 . . . 5 5 . 5 18 . Partial Spotted 45 | . . . 30 . . . 15 . . . . . Lose Combat Pursuer 465 | . 105 . . 45 . . 60 . 15 . 150 90 Influence Decreases 513 | . 36 62 45 37 35 . 30 38 6 31 94 99 Entered New Map 195 | . . 52 15 17 35 . . 28 6 13 . 29 Time Decay 318 | . 36 10 30 20 . . 30 10 . 18 94 70 Squads Dispatched 8 | . 2 . 1 . . . 1 . . . 4 . Investigation 4 | . 1 . 1 . . . . . . . 2 . Extermination 1 | . . . . . . . . . . . 1 . Reinforcement 3 | . 1 . . . . . 1 . . . 1 . Assault . | . . . . . . . . . . . . . Garrison . | . . . . . . . . . . . . . Intercept . | . . . . . . . . . . . . . Searches Triggered . | . . . . . . . . . . . . . Construction Impeded 1 | . . . . . . . . . . . 1 . Haulers Reinforced . | . . . . . . . . . . . . . Active Scanning Responses . | . . . . . . . . . . . . . Cargo Convoy Interrupts . | . . . . . . . . . . . . . Stealth | -11 -10 -10 -9 -9 -9 -8 -8 -7 -7 -6 -5 -5 --------- Run | Yrd Mat Min Mat Min Exi Min Mat Fac DSF Fac Fac Upp Distress Signals 5 | . . . 2 . . . 2 . . . 1 . Communications Jammed . | . . . . . . . . . . . . . Distress Signals . | . . . . . . . . . . . . . Times Spotted 71 | . 11 . 8 6 . 3 13 . 3 1 17 9 Peak Tracking Total 11 | . 8 . 9 6 . 3 11 . 2 1 8 6 Tactical Retreats 13 | . 2 . . 1 . . 2 . 1 . 5 2 Traps | -11 -10 -10 -9 -9 -9 -8 -8 -7 -7 -6 -5 -5 ------- Run | Yrd Mat Min Mat Min Exi Min Mat Fac DSF Fac Fac Upp Traps Triggered 5 | . . . . . . . 1 . 2 . 2 . Indirectly . | . . . . . . . . . . . . . Trap Hack Attempts . | . . . . . . . . . . . . . Triggered . | . . . . . . . . . . . . . Disarmed . | . . . . . . . . . . . . . Reprogrammed . | . . . . . . . . . . . . . Reused . | . . . . . . . . . . . . . Traps Extracted . | . . . . . . . . . . . . . Installed . | . . . . . . . . . . . . . Triggered . | . . . . . . . . . . . . . Machines | -11 -10 -10 -9 -9 -9 -8 -8 -7 -7 -6 -5 -5 ---------- Run | Yrd Mat Min Mat Min Exi Min Mat Fac DSF Fac Fac Upp Machines Disabled . | . . . . . . . . . . . . . Max in Single Turn . | . . . . . . . . . . . . . Garrison Access 1 | . . . . . . . . . . . 1 . Machines Repaired . | . . . . . . . . . . . . . Machines Dismantled . | . . . . . . . . . . . . . Machines Sabotaged . | . . . . . . . . . . . . . Overloaded Fab Kills . | . . . . . . . . . . . . . Hacking | -11 -10 -10 -9 -9 -9 -8 -8 -7 -7 -6 -5 -5 --------- Run | Yrd Mat Min Mat Min Exi Min Mat Fac DSF Fac Fac Upp Machines Accessed 17 | . 3 . 3 . . . 1 1 . 3 6 . Terminals 16 | . 3 . 3 . . . 1 1 . 3 5 . Fabricators . | . . . . . . . . . . . . . Repair Stations . | . . . . . . . . . . . . . Recycling Units . | . . . . . . . . . . . . . Scanalyzers . | . . . . . . . . . . . . . Garrison Access 1 | . . . . . . . . . . . 1 . Total Hacks 40 | . 10 . 10 . . . 2 2 . 4 12 . Successful 16 | . 4 . 4 . . . 1 1 . 2 4 . Failed 24 | . 6 . 6 . . . 1 1 . 2 8 . Catastrophic 6 | . 1 . 2 . . . 1 . . . 2 . Database Lockouts . | . . . . . . . . . . . . . Manual 34 | . 10 . 10 . . . 2 . . 2 10 . Terminals 39 | . 10 . 10 . . . 2 2 . 4 11 . Fabricators . | . . . . . . . . . . . . . Repair Stations . | . . . . . . . . . . . . . Recycling Units . | . . . . . . . . . . . . . Scanalyzers . | . . . . . . . . . . . . . Garrison Access 1 | . . . . . . . . . . . 1 . Terminal Hacks 5 | . 1 . 1 . . . . 1 . 1 1 . Open DSF 3 | . . . . . . . . 1 . 1 1 . Branch Access Points 2 | . 1 . 1 . . . . . . . . . Fabricator Hacks . | . . . . . . . . . . . . . Repair Station Hacks . | . . . . . . . . . . . . . Recycling Unit Hacks . | . . . . . . . . . . . . . Scanalyzer . | . . . . . . . . . . . . . Garrison Access Hacks 1 | . . . . . . . . . . . 1 . Seal Access 1 | . . . . . . . . . . . 1 . Unauthorized Hacks 10 | . 3 . 3 . . . 1 . . 1 2 . Terminals 10 | . 3 . 3 . . . 1 . . 1 2 . Botnet 10 | . 3 . 3 . . . 1 . . 1 2 . Fabricators . | . . . . . . . . . . . . . Repair Stations . | . . . . . . . . . . . . . Recycling Units . | . . . . . . . . . . . . . Scanalyzers . | . . . . . . . . . . . . . Garrison Access . | . . . . . . . . . . . . . Data Cores Recovered . | . . . . . . . . . . . . . Used . | . . . . . . . . . . . . . Hacking Detections 15 | . 3 . 3 . . . 1 1 . 2 5 . Full Trace Events 5 | . 1 . 2 . . . . . . . 2 . Feedback Events . | . . . . . . . . . . . . . Feedback Blocked . | . . . . . . . . . . . . . Robot Schematics Acquired . | . . . . . . . . . . . . . Robots Built . | . . . . . . . . . . . . . Authchips . | . . . . . . . . . . . . . Time . | . . . . . . . . . . . . . Total Robot Build Rating . | . . . . . . . . . . . . . Part Schematics Acquired . | . . . . . . . . . . . . . Parts Built . | . . . . . . . . . . . . . Authchips . | . . . . . . . . . . . . . Time . | . . . . . . . . . . . . . Total Part Build Rating . | . . . . . . . . . . . . . Parts Repaired . | . . . . . . . . . . . . . Time . | . . . . . . . . . . . . . Parts Recycled . | . . . . . . . . . . . . . Recycled Matter . | . . . . . . . . . . . . . Retrieved Matter . | . . . . . . . . . . . . . Retrieved Components . | . . . . . . . . . . . . . Parts Scanalyzed . | . . . . . . . . . . . . . Part Schematics Acquired . | . . . . . . . . . . . . . Parts Damaged . | . . . . . . . . . . . . . Bothacking | -11 -10 -10 -9 -9 -9 -8 -8 -7 -7 -6 -5 -5 ------------ Run | Yrd Mat Min Mat Min Exi Min Mat Fac DSF Fac Fac Upp Used RIF Installer . | . . . . . . . . . . . . . Robots Hacked . | . . . . . . . . . . . . . Non-combat . | . . . . . . . . . . . . . Combat . | . . . . . . . . . . . . . Robot Hacks Applied . | . . . . . . . . . . . . . Relay Couplers Released . | . . . . . . . . . . . . . Fabnet Peak Effective % . | . . . . . . . . . . . . . Robots Rewired . | . . . . . . . . . . . . . Allies Hacked . | . . . . . . . . . . . . . Hacks Repelled . | . . . . . . . . . . . . . Allies | -11 -10 -10 -9 -9 -9 -8 -8 -7 -7 -6 -5 -5 -------- Run | Yrd Mat Min Mat Min Exi Min Mat Fac DSF Fac Fac Upp Total Allies . | . . . . . . . . . . . . . Largest Group . | . . . . . . . . . . . . . Highest-Rated Group . | . . . . . . . . . . . . . Highest-Rated Ally . | . . . . . . . . . . . . . Initial Warlord ECA Mod 25 | . . . . . . . . . . 9 8 8 Total Orders . | . . . . . . . . . . . . . Ally Attacks . | . . . . . . . . . . . . . Total Damage . | . . . . . . . . . . . . . Kills . | . . . . . . . . . . . . . Allies Corrupted . | . . . . . . . . . . . . . Allies Melted . | . . . . . . . . . . . . . Intel | -11 -10 -10 -9 -9 -9 -8 -8 -7 -7 -6 -5 -5 ------- Run | Yrd Mat Min Mat Min Exi Min Mat Fac DSF Fac Fac Upp Active Infowar (turns) . | . . . . . . . . . . . . . Robot Analysis Total . | . . . . . . . . . . . . . Derelict Logs Recovered 2 | . . . . . . . . . . . . 2 Drone Launches . | . . . . . . . . . . . . . Drone Recoveries . | . . . . . . . . . . . . . Exploration | -11 -10 -10 -9 -9 -9 -8 -8 -7 -7 -6 -5 -5 ------------- Run | Yrd Mat Min Mat Min Exi Min Mat Fac DSF Fac Fac Upp Turns Passed 1206 | 9 87 26 62 52 77 86 138 21 56 152 291 149 Spaces Moved 2177 | 18 167 49 124 103 154 162 227 41 52 297 502 281 Core 2177 | 18 167 49 124 103 154 162 227 41 52 297 502 281 Treads . | . . . . . . . . . . . . . Legs . | . . . . . . . . . . . . . Wheels . | . . . . . . . . . . . . . Hover . | . . . . . . . . . . . . . Flight . | . . . . . . . . . . . . . Fastest Speed 50 | 50 50 50 50 50 50 50 50 50 50 50 50 50 Average Speed 50 | 50 50 50 50 50 50 50 50 50 50 50 50 50 Slowest Speed 50 | 50 50 50 50 50 50 50 50 50 50 50 50 50 Overloaded Moves . | . . . . . . . . . . . . . Propulsion Burnouts . | . . . . . . . . . . . . . Robots Hopped . | . . . . . . . . . . . . . Potential Cave-ins . | . . . . . . . . . . . . . Cave-ins Triggered . | . . . . . . . . . . . . . Exploration Rate (%) 29 | 3 39 17 19 35 55 39 33 1 69 9 19 46 Regions Visited 12 Branch Regions 5 Pre-discovered Areas 2 | . . . . . . . . . . . . 2 Known Exits Taken 3 | . 1 . 1 . . . . 1 . . . . Unknown Exits Taken 8 | 1 . 1 . 1 1 1 1 . . 1 1 . Scrap Searched 1 | . . 1 . . . . . . . . . . Spaces Dug . | . . . . . . . . . . . . . Terrain Destroyed . | . . . . . . . . . . . . . Melee . | . . . . . . . . . . . . . Projectile . | . . . . . . . . . . . . . AOE . | . . . . . . . . . . . . . Terrain Rammed . | . . . . . . . . . . . . . Walls Destroyed . | . . . . . . . . . . . . . Machines Disabled . | . . . . . . . . . . . . . Actions | -11 -10 -10 -9 -9 -9 -8 -8 -7 -7 -6 -5 -5 --------- Run | Yrd Mat Min Mat Min Exi Min Mat Fac DSF Fac Fac Upp Total 2279 | 17 169 49 123 102 153 166 250 40 81 299 541 289 Wait 27 | . 1 . . . . . 12 . . . 10 4 Move 2165 | 17 166 48 123 102 153 161 226 40 51 296 501 281 Hop . | . . . . . . . . . . . . . Pick Up . | . . . . . . . . . . . . . Fast Attach . | . . . . . . . . . . . . . Attach . | . . . . . . . . . . . . . Detach . | . . . . . . . . . . . . . Swap . | . . . . . . . . . . . . . Drop . | . . . . . . . . . . . . . Fire . | . . . . . . . . . . . . . Melee . | . . . . . . . . . . . . . Ram 42 | . 2 1 . . . 5 12 . . 3 15 4 Kick . | . . . . . . . . . . . . . Crush . | . . . . . . . . . . . . . Escape Stasis 45 | . . . . . . . . . 30 . 15 . Rewire . | . . . . . . . . . . . . . Trap . | . . . . . . . . . . . . . Miscellaneous . | . . . . . . . . . . . . . Route ------- -11/Scrapyard -10/Materials (discovered 2 exits: *Mat / *Min) -10/Mines -9/Materials -9/Mines (discovered 2 exits: *Mat / [*Exi]) -9/Exiles -8/Mines -8/Materials -7/Factory -7/DSF -6/Factory -5/Factory -5/Upper Caves History --------- Turn | Location | Event 3 | -11/Scrapyard | Discovered new exit (range 15) 10 | -11/Scrapyard | Entered Materials 30 | -10/Materials | Identified exit to Mines 54 | -10/Materials | Discovered new exit (range 8) 92 | -10/Materials | Core integrity fell below 50% 97 | -10/Materials | Entered Mines 117 | -10/Mines | Discovered new exit (range 10) 123 | -10/Mines | Entered Materials 123 | -9/Materials | Evolved 2 slots: Power x2 147 | -9/Materials | Identified exit to Mines 185 | -9/Materials | Entered Mines 196 | -9/Mines | Met a Derelict bent on vengeance 217 | -9/Mines | Discovered new exit (range 16) 234 | -9/Mines | Deemed a non-threat by the Exiles lab entrance 235 | -9/Mines | Discovered new exit (range 5) 237 | -9/Mines | Entered Exiles 249 | -9/Exiles | Met 8R-AWN 259 | -9/Exiles | Met EX-HEX 272 | -9/Exiles | Met EX-BIN 278 | -9/Exiles | Aligned with FarCom system 278 | -9/Exiles | Given EX-Vault access code 292 | -9/Exiles | Met EX-DEC 305 | -9/Exiles | Build established: Mutant 309 | -9/Exiles | Discovered new exit (range 14) 314 | -9/Exiles | Entered Mines 354 | -8/Mines | Core integrity fell below 50% 375 | -8/Mines | Core integrity fell below 20% 398 | -8/Mines | Discovered new exit (range 3) 400 | -8/Mines | Entered Materials 400 | -8/Materials | Evolved 2 slots: Power x2 535 | -8/Materials | Discovered new exit (range 7) 538 | -8/Materials | Entered Factory 538 | -7/Factory | Evolved 2 slots: Power x2 559 | -7/Factory | Identified exit to DSF 559 | -7/Factory | Entered DSF 559 | -7/DSF | Encountered a pitched battle between 0b10 and Warlord forces 591 | -7/DSF | Sterilization system engaged 609 | -7/DSF | Discovered new exit (range 14) 611 | -7/DSF | Ambient heat levels rising (+10) 615 | -7/DSF | Entered Factory 615 | -6/Factory | Evolved 2 slots: Power x2 763 | -6/Factory | Discovered new exit (range 7) 767 | -6/Factory | Entered another Factory area 767 | -5/Factory | Evolved 2 slots: Power x2 1051 | -5/Factory | Discovered new exit (range 15) 1058 | -5/Factory | Entered Upper Caves 1066 | -5/Upper Caves | Core integrity fell below 50% 1149 | -5/Upper Caves | Encountered a Warlord checkpoint 1153 | -5/Upper Caves | Learned location of Armory (-3) 1182 | -5/Upper Caves | Core integrity fell below 20% 1207 | -5/Upper Caves | Destroyed by P-70 Sage with High-powered Shock Rifle Last Messages --------------- 01062_ Slug penetrates Wall. 01065_ Penetrated by Slug. 01085_ System corrupted: Energy discharge (-40). 01087_ C-30 ARC bursts open, deploying its payload. 01087_ S-27 Virus unfolds itself. 01100_ Slammed into S-27 Virus. 01103_ S-27 Virus destroyed. 01121_ Slammed into 9E-35R(S). 01121_ Destroyed Com. Battery. 01121_ 9E-35R(S) system corrupted by crushing effect. 01122_ 9E-35R(S) system terminally corrupted. 01122_ Com. Battery fried. 01134_ System corrupted: Heat flow error (+187). 01149_ AL-KF7(M): "You haven't seen any Assembled, have you?" 01153_ Acquired derelict log, extracted data. World map updated: -3/Armory. 01165_ Acquired derelict log, extracted data. World map confirmed: -3/Armory. 01181_ Slammed into P-70 Sage. 01195_ System corrupted: Energy discharge (-21). Map ----- +----------------------------------------------------+ | ????????????????????????###???##?????????????????? | | ???????????????????????# ##??# ##???????????????? | | ?????????????###??##### #?## #???????????????? | | ????????????##/#### ### #???????????????? | | ????????????#/ # # ### #???###?????????? | | ????????????#//# #%# ### #???# #######???? | | ????????????#//##%## #### ##### ## ##??? | | ????????????#//#### #?# ## ##?# | | ????????????###### ##?# ### | | ????????????????# #####?# | | ????????????????## #### #?##### | | ?????????????????## #??? ##????## | | ??????????????????# #???# #?????# | | ??????????????????# #???# ###???# | | ??????????????????# ##### #???# ### ## ? | | ???????????????#### ##??# ##?## #??? | | ??????????????## #??###???## #??? | | ??????????????# ######## #?????????### ##??? | | ??????????????# ###?### ##??????????# ##### | | ??????????????## ### ######?????# ## | | ??????????????## p #?????# ## $ | | ?????????????## p #???### ## # | | ?????????????# ## ### #??## # | | ?????????????## ######?# #??# # | | ??????????????## ##????## #??# ##### | | ??????????????## @ ##??## #??## #???? | | ??????????????# ## #??# ####### #???? | | ?????????????## ## ##?# #??# ##??? | | ?????????????# # ### #### #??? | | ?????????????## ## ## #??? | | ??????????????##### ######## ##??? | | ??????????????????# #????# #???? | | ??????????????????# ###????# ## #???? | | ??????????????????## #?????# #### #???? | | ???????????????????# #???# ###??# #???? | | ???????????????????# #?# ####???? ??? | | ???????????????????## ##?# ##??????? # ?? | | ????????????????????####??########????????#? "? | | ???????????????????????????????????????????? """ | | ???????????????????????????????????????????? """" | | ???????????????????????????????????????????? ? | | ????????????????????????????????????????????" " ?? | | ????????????????????????????????????????????"""??? | | ?????????????????????????????????????????????????? | | ?????????????????????????????????????????????????? | | ?????????????????????????????????????????????????? | | ?????????????????????????????????????????????????? | | ?????????????????????????????????????????????????? | | ?????????????????????????????????????????????????? | | ?????????????????????????????????????????????????? | +----------------------------------------------------+ Best States ------------- Heat Dissipation 40 Energy Generation 5 Energy Capacity 100 Matter Stores 300 Matter Capacity 300 Sight Range 16 Terrain Scan Density 10 Evasion (%) 50 Item Schematics ----------------- None Robot Schematics ------------------ None Fabricated ------------ Nothing Repaired ---------- Nothing Alien Tech Used ----------------- None Achievements -------------- Streaker Challenges ------------ None Game ------ Seed AnalysisRestorationComputer Manual? 0 Play Time 00:20:31 Cumulative 20.5 hours Start 2025.06.18 @ 22:31:24 End 2025.06.18 @ 22:50:51 Sessions 1 Manual Loads 0 Difficulty Rogue Special Mode None Game No. 32 Rogue 32 Adventurer 0 Explorer 0 Win Type - Total 2 Types 2/0/0/0/0/0/0/0/0/0 Lore% 17 Gallery% 19 Achievement% 30 Wizard Run 0 Options --------- Layout 0 ASCII 0 Keyboard 1 Movement Vi Keybinds 0 Fullscreen 1 Font 18/SmallcapsGlow Map View 76x50 Zoom Use 0% Tactical HUD 1 Map Filters NONE Filters NONE Steam 1 RUN: 8f82f546-506a-4486-87f2-b81824730161